fUST/lending_fUST_20260414
["ID","MTS","AMOUNT","RATE_DAILY","PERIOD"]
[420495597,1776160243972,-2160.0,6.5e-05,2]
[420495682,1776160246279,-521.99783014,6.5e-05,2]
[420495685,1776160246292,-565.45,6.5e-05,2]
[420495688,1776160246303,-443.0,6.5e-05,2]
[420495717,1776160246674,-682.42548336,6.5e-05,2]
[420495728,1776160246819,-1513.56850939,6.5e-05,2]
[420495731,1776160246853,-4972.768791,6.5e-05,2]
[420495744,1776160247059,-1431.46,6.5e-05,2]
[420496010,1776160541206,208.4125092,6.238e-05,30]
[420496011,1776160542054,208.4125092,6.238e-05,30]
[420496012,1776160542848,208.4125092,6.239e-05,30]
[420496013,1776160543676,208.4125092,6.394e-05,30]
[420496014,1776160544466,208.4125092,0.00025281,120]
[420496015,1776160550669,171.09350132,6.238e-05,30]
[420496017,1776160707077,155.82,2.002e-05,2]
[420496018,1776160853226,2500.0,0.00027397,120]
[420496019,1776160873496,3129.75401893,0.00027397,120]
[420496020,1776160910716,495.0,0.00027,120]
[420496021,1776160911033,495.0,0.00027,120]
[420496022,1776160911314,495.0,0.00027,120]
[420496023,1776160911609,495.0,0.00027,120]
[420496024,1776160911905,395.0,0.00027,120]
[420496025,1776160913879,416.97565547,0.00027397,120]
[420496027,1776160920594,655.36177524,0.0002,120]
[420496028,1776160924445,150.38955418,0.00022,120]
[420496030,1776160971396,179.69283532,7.5e-07,30]
[420496031,1776160971499,179.69283532,7.5e-07,30]
[420496032,1776160971616,179.69283532,7.5e-07,30]
[420496033,1776160971767,179.69283532,7.4e-07,30]
[420496034,1776160971859,179.69283532,7.4e-07,30]
[420496035,1776160971983,179.69283532,7.4e-07,30]
[420496036,1776160972128,179.69283532,7.4e-07,30]
[420496037,1776160972321,179.69283532,7.4e-07,30]
[420496038,1776160972440,179.69283532,7.4e-07,30]
[420496040,1776161022534,5000.0,5.1e-05,10]
[420496041,1776161370234,-264.00934733,4.802e-05,2]
[420496107,1776161433575,-38.19598529,4.802e-05,2]
[420496108,1776161433586,-417.37415075,4.827e-05,2]
[420496109,1776161433599,-302.20533262,5e-05,2]
[420496110,1776161433609,-12.94973421,6.232e-05,2]
[420496155,1776161439262,-160.92141599,6.232e-05,2]
[420496156,1776161439273,-455.5981472,6.238e-05,2]
[420496157,1776161439283,-745.13946479,6.239e-05,2]
[420496177,1776161441328,-160.92141599,6.17e-05,2]
[420496179,1776161441354,-192.24016421,6.239e-05,2]
[420496181,1776161441374,-455.6259834,6.24e-05,2]
[420496183,1776161441404,-40.46103063,6.5e-05,2]
[420496509,1776161635718,-509.0,5.519e-05,2]
[420496510,1776161635761,-173.4012952,5.519e-05,2]
[420496511,1776161635785,-500.0,5.519e-05,2]
[420496512,1776161635817,-151.0,6.232e-05,2]
[420496513,1776161635848,-513.0,6.308e-05,2]
[420496514,1776161635872,-513.0,6.372e-05,2]
[420496515,1776161635903,-6790.0190758,6.5e-05,2]
[420496516,1776161635956,-937.379629,6.5e-05,2]
[420496517,1776161636030,-2100.0,6.5e-05,2]
[420496518,1776161636082,-1123.0,6.5e-05,2]
[420496519,1776161636163,-600.0,6.5e-05,2]
[420496520,1776161636718,513.0,5.464e-05,2]
[420496521,1776161636752,169.4012952,5.464e-05,2]
[420496522,1776161652247,343.5987048,6.372e-05,2]
[420496523,1776161660468,513.0,6.308e-05,2]
[420496527,1776162088874,-151.0,8.504e-05,28]
[420496528,1776162090191,-147.0,8.504e-05,28]
[420496529,1776162145388,178.0,0.00025094,120]
[420496530,1776162260638,1000.0,0.00027397,120]
[420496531,1776162345725,302.0,5.762e-05,30]
[420496532,1776162572235,-3498.86839808,5.22e-05,2]
[420496533,1776162572260,-3498.86839808,5.273e-05,2]
[420496534,1776162572281,-300.0,5.325e-05,2]
[420496535,1776162572306,-300.0,5.325e-05,2]
[420496536,1776162572326,-1200.0,5.325e-05,2]
[420496537,1776162572353,-2285.0313785,5.326e-05,2]
[420496634,1776162638436,-199.28350888,5.168e-05,2]
[420496636,1776162638449,-429.27421673,5.194e-05,2]
[420496638,1776162638460,-199.28350888,5.22e-05,2]
[420496640,1776162638486,-199.28350888,5.273e-05,2]
[420496643,1776162638498,-170.22170177,5.372e-05,2]
[420496645,1776162638512,-3498.86839808,5.379e-05,2]
[420496646,1776162638530,-1799.9152028,5.479e-05,2]
[420496649,1776162638548,-300.0,5.484e-05,2]
[420496650,1776162638568,-300.0,5.484e-05,2]
[420496651,1776162638586,-300.0,5.485e-05,2]
[420496652,1776162638597,-300.0,5.485e-05,2]
[420496653,1776162638607,-1200.0,5.485e-05,2]
[420496654,1776162638620,-300.0,5.485e-05,2]
[420496655,1776162638639,-300.0,5.486e-05,2]
[420496656,1776162638649,-300.0,5.486e-05,2]
[420496657,1776162638658,-300.0,5.486e-05,2]
[420496658,1776162638679,-300.0,5.486e-05,2]
[420496659,1776162638689,-300.0,5.486e-05,2]
[420496660,1776162638699,-300.0,5.486e-05,2]
[420496661,1776162638719,-300.0,5.486e-05,2]
[420496662,1776162638729,-300.0,5.486e-05,2]
[420496663,1776162638740,-300.0,5.486e-05,2]
[420496664,1776162638750,-161.86995398,5.486e-05,2]
[420496665,1776162638768,-138.13004602,5.486e-05,2]
[420496666,1776162638778,-300.0,5.486e-05,2]
[420496667,1776162638788,-300.0,5.486e-05,2]
[420496668,1776162638799,-300.0,5.486e-05,2]
[420496669,1776162638810,-300.0,5.486e-05,2]
[420496670,1776162638828,-300.0,5.486e-05,2]
[420496671,1776162638838,-600.0,5.595e-05,2]
[420496672,1776162638854,-1680.0,5.858e-05,2]
[420496673,1776162638863,-420.0,6.032e-05,2]
[420496674,1776162638875,-420.0,6.032e-05,2]
[420496675,1776162638890,-420.0,6.034e-05,2]
[420496676,1776162638900,-420.0,6.034e-05,2]
[420496677,1776162638910,-420.0,6.034e-05,2]
[420496678,1776162638926,-1680.0,6.034e-05,2]
[420496679,1776162638935,-720.0,6.154e-05,2]
[420496680,1776162638957,-195.9491867,6.315e-05,2]
[420496681,1776162638967,-500.0,6.373e-05,2]
[420496682,1776162638977,-500.0,6.373e-05,2]
[420496683,1776162639011,-1268.73723869,6.399e-05,2]
[420496684,1776162639029,-1268.73723869,6.399e-05,2]
[420496685,1776162639056,-1268.73723869,6.399e-05,2]
[420496686,1776162639065,-1268.73723869,6.399e-05,2]
[420496687,1776162639081,-1268.73723869,6.399e-05,2]
[420496688,1776162639110,-1268.73723869,6.399e-05,2]
[420496689,1776162639121,-1268.73723869,6.399e-05,2]
[420496690,1776162639131,-1268.73723869,6.399e-05,2]
[420496691,1776162639150,-1268.73723869,6.399e-05,2]
[420496692,1776162639162,-1268.73723869,6.399e-05,2]
[420496693,1776162639173,-1316.10342893,6.399e-05,2]
[420496694,1776162639199,-1316.10342893,6.399e-05,2]
[420496695,1776162639209,-1316.10342893,6.399e-05,2]
[420496696,1776162639219,-1316.10342893,6.399e-05,2]
[420496697,1776162639241,-1316.10342893,6.399e-05,2]
[420496698,1776162639273,-1316.10342893,6.399e-05,2]
[420496699,1776162639300,-1316.10342893,6.399e-05,2]
[420496700,1776162639309,-1316.10342893,6.399e-05,2]
[420496701,1776162639336,-1309.17656878,6.399e-05,2]
[420496702,1776162639359,-1309.17656878,6.399e-05,2]
[420496703,1776162639369,-1309.17656878,6.399e-05,2]
[420496704,1776162639378,-1911.39779043,6.399e-05,2]
[420496705,1776162639388,-402.750764,6.399e-05,2]
[420496706,1776162639407,-402.75076399,6.4e-05,2]
[420496707,1776162639417,-36823.63290456,6.4e-05,2]
[420496759,1776162643819,-318.76458658,6.397e-05,2]
[420496761,1776162646627,-511.0,6.397e-05,2]
[420496762,1776162646640,-181.23541342,6.397e-05,2]
[420496763,1776162646672,-331.51730368,6.4e-05,2]
[420496764,1776162646698,-7411.92761446,6.4e-05,2]
[420496765,1776162646725,-4553.02931013,6.4e-05,2]
[420497544,1776162767610,-1256.78638887,6.21e-05,2]
[420497545,1776162767645,-509.0,6.21e-05,2]
[420497546,1776162767669,-325.0587405,6.224e-05,2]
[420497547,1776162767697,-196.4229743,6.236e-05,2]
[420497548,1776162767723,-2410.44073577,6.273e-05,2]
[420497549,1776162767759,-5302.29116056,6.299e-05,2]
[420497550,1776162769610,-10000.0,6.299e-05,2]
[420497551,1776162770688,-10000.0,6.299e-05,2]
[420497552,1776162771634,-10000.0,6.299e-05,2]
[420497553,1776162772603,-10000.0,6.299e-05,2]
[420497554,1776162773546,-10000.0,6.299e-05,2]
[420497555,1776162775331,-10000.0,6.299e-05,2]
[420497556,1776162776323,-10000.0,6.299e-05,2]
[420497557,1776162777831,-10000.0,6.299e-05,2]
[420497558,1776162799504,-300.0,6.298e-05,2]
[420497559,1776162799564,-9700.0,6.298e-05,2]
[420497560,1776162801324,-10000.0,6.298e-05,2]
[420497561,1776162802837,-500.0,6.298e-05,2]
[420497562,1776162802918,-500.0,6.298e-05,2]
[420497563,1776162802970,-500.0,6.298e-05,2]
[420497564,1776162803027,-500.0,6.298e-05,2]
[420497565,1776162803066,-500.0,6.298e-05,2]
[420497566,1776162803101,-500.0,6.298e-05,2]
[420497567,1776162803142,-7000.0,6.298e-05,2]
[420497568,1776162804478,-500.0,6.298e-05,2]
[420497569,1776162804644,-500.0,6.298e-05,2]
[420497570,1776162804789,-500.0,6.298e-05,2]
[420497571,1776162804853,-500.0,6.298e-05,2]
[420497572,1776162804975,-500.0,6.298e-05,2]
[420497573,1776162805148,-500.0,6.298e-05,2]
[420497574,1776162805249,-500.0,6.298e-05,2]
[420497575,1776162805292,-6500.0,6.298e-05,2]
[420497576,1776162815203,-206.4177,6.298e-05,2]
[420497582,1776163127065,-2994.18820615,5.147e-05,2]
[420497583,1776163127103,-2943.73479385,5.199e-05,2]
[420497584,1776163161490,300.0,8.247e-05,30]
[420497585,1776163163219,197.94,8.247e-05,30]
[420497587,1776163274485,1869.0,0.00027397,120]
[420497588,1776163332930,243.36,0.00027397,120]
[420497589,1776163346987,2000.0,0.00027,120]
[420497590,1776163416572,5000.0,5.1e-05,10]
[420497591,1776163438898,5000.0,5.1e-05,10]
[420497592,1776163446921,35757.4473113,0.00027397,120]
[420497593,1776163511048,195.0,0.00026528,120]
[420497594,1776163533521,163.0,0.00025128,120]
[420497595,1776163534890,163.0,0.00026385,120]
[420497596,1776163611162,-208.41019938,4.635e-05,2]
[420497597,1776163651428,5000.0,5.1e-05,10]
[420497624,1776163832351,-1256.78638887,4.612e-05,2]
[420497626,1776163832362,-3743.21361113,4.612e-05,2]
[420497627,1776163832389,-461.16125479,4.659e-05,2]
[420497629,1776163832402,-1814.577097,4.682e-05,2]
[420497631,1776163832419,-174.639092,4.73e-05,2]
[420497633,1776163832456,-300.0,5.132e-05,2]
[420497634,1776163832466,-300.0,5.132e-05,2]
[420497636,1776163832488,-300.0,5.132e-05,2]
[420497637,1776163832500,-300.0,5.132e-05,2]
[420497639,1776163832518,-1200.0,5.132e-05,2]
[420497640,1776163832535,-300.0,5.133e-05,2]
[420497641,1776163832546,-1048.0,5.133e-05,2]
[420497642,1776163832576,-2551.9697896,5.134e-05,2]
[420497643,1776163832589,-964.4682704,5.134e-05,2]
[420497644,1776163832603,-1786.60806591,5.251e-05,2]
[420497647,1776163838712,-1056.93707012,5.251e-05,2]
[420497730,1776163841209,-0.0242014,5.251e-05,2]
[420497732,1776163841253,-1644.79588147,5.251e-05,2]
[420497734,1776163841276,-2594.81400583,5.351e-05,2]
[420497781,1776163843475,-1352.99176546,5.297e-05,2]
[420497782,1776163843487,-3647.00823454,5.297e-05,2]
[420497783,1776163843499,-921.62405417,5.351e-05,2]
[420497784,1776163843516,-300.0,5.355e-05,2]
[420497785,1776163843526,-300.0,5.355e-05,2]
[420497786,1776163843537,-300.0,5.355e-05,2]
[420497787,1776163843550,-300.0,5.355e-05,2]
[420497788,1776163843560,-300.0,5.355e-05,2]
[420497789,1776163843570,-300.0,5.355e-05,2]
[420497790,1776163843586,-300.0,5.355e-05,2]
[420497791,1776163843599,-300.0,5.355e-05,2]
[420497792,1776163843611,-292.61783902,5.355e-05,2]
[420497793,1776163843804,-7.38216098,5.355e-05,2]
[420497794,1776163843813,-15.77452784,5.355e-05,2]
[420497854,1776163846815,-284.22547216,5.355e-05,2]
[420497855,1776163846837,-300.0,5.355e-05,2]
[420497858,1776163846872,-300.0,5.355e-05,2]
[420497860,1776163846881,-300.0,5.355e-05,2]
[420497862,1776163846898,-300.0,5.355e-05,2]
[420497864,1776163846923,-300.0,5.355e-05,2]
[420497866,1776163846960,-2098.96273399,5.567e-05,2]
[420497868,1776163846976,-1417.47532601,5.567e-05,2]
[420497870,1776163846997,-420.0,5.645e-05,2]
[420497872,1776163847010,-407.0,5.645e-05,2]
[420497874,1776163847022,-420.0,5.645e-05,2]
[420497876,1776163847038,-420.0,5.645e-05,2]
[420497878,1776163847053,-1680.0,5.645e-05,2]
[420497880,1776163847067,-358.0,5.647e-05,2]
[420497882,1776163847080,-250.0,5.685e-05,2]
[420497884,1776163847090,-3516.43806,5.783e-05,2]
[420497886,1776163847108,-3516.43806,5.999e-05,2]
[420497888,1776163847134,-344.44626433,6.072e-05,2]
[420497890,1776163847146,-500.0,6.092e-05,2]
[420497892,1776163847157,-500.0,6.092e-05,2]
[420497894,1776163847190,-500.0,6.092e-05,2]
[420497897,1776163847206,-500.0,6.092e-05,2]
[420497899,1776163847232,-500.0,6.092e-05,2]
[420497901,1776163847267,-500.0,6.092e-05,2]
[420497903,1776163847276,-500.0,6.092e-05,2]
[420497905,1776163847285,-6059.53118165,6.093e-05,2]
[420497973,1776163848106,-328470.23401302,6.093e-05,2]
[420497998,1776164445684,-828.3480474,5.295e-05,2]
[420498012,1776164861611,15000.0,0.00015,120]
[420498013,1776164864697,765.3932969,0.00012,90]
[420498014,1776164864727,1071.28692396,0.00012,90]
[420498015,1776164864752,409.3255475,0.00012,90]
[420498016,1776164864774,548.77227298,0.00012,90]
[420498017,1776164864800,218.66524445,0.00012,90]
[420498018,1776164864823,123.61351058,0.00012,90]
[420498019,1776164974736,-1769.85824514,4.469e-05,2]
[420498020,1776164974760,-4917.93098027,4.514e-05,2]
[420498056,1776165032498,-433.45811007,4.424e-05,2]
[420498124,1776165039082,-4566.54188993,4.424e-05,2]
[420498125,1776165039092,-1261.80615747,4.469e-05,2]
[420498126,1776165039112,-451.93802969,4.537e-05,2]
[420498127,1776165039130,-300.0,4.794e-05,2]
[420498128,1776165039145,-300.0,4.794e-05,2]
[420498129,1776165039155,-300.0,4.794e-05,2]
[420498130,1776165039167,-1200.0,4.794e-05,2]
[420498131,1776165039181,-8831.9867982,4.795e-05,2]
[420498132,1776165039200,-300.0,4.89e-05,2]
[420498133,1776165039214,-300.0,4.89e-05,2]
[420498134,1776165039224,-300.0,4.89e-05,2]
[420498135,1776165039241,-300.0,4.89e-05,2]
[420498136,1776165039256,-300.0,4.89e-05,2]
[420498137,1776165039265,-300.0,4.89e-05,2]
[420498138,1776165039274,-300.0,4.89e-05,2]
[420498139,1776165039293,-300.0,4.89e-05,2]
[420498140,1776165039306,-300.0,4.89e-05,2]
[420498141,1776165039315,-300.0,4.89e-05,2]
[420498142,1776165039326,-300.0,4.89e-05,2]
[420498143,1776165039338,-300.0,4.89e-05,2]
[420498144,1776165039353,-300.0,4.89e-05,2]
[420498145,1776165039365,-300.0,4.89e-05,2]
[420498146,1776165039375,-300.0,4.89e-05,2]
[420498147,1776165039405,-500.0,4.89e-05,2]
[420498148,1776165039418,-500.0,4.89e-05,2]
[420498149,1776165039443,-420.0,5.274e-05,2]
[420498150,1776165039457,-420.0,5.274e-05,2]
[420498151,1776165039486,-420.0,5.274e-05,2]
[420498152,1776165039501,-1322.0,5.274e-05,2]
[420498153,1776165039530,-600.0,5.4e-05,2]
[420498154,1776165039567,-325.2214704,5.402e-05,2]
[420498155,1776165039586,-500.0,5.402e-05,2]
[420498156,1776165039614,-500.0,5.402e-05,2]
[420498157,1776165039635,-500.0,5.402e-05,2]
[420498158,1776165039650,-508.40262219,5.438e-05,2]
[420498159,1776165039685,-266.1591198,5.479e-05,2]
[420498160,1776165039706,-587.0,5.801e-05,2]
[420498161,1776165039724,-331.0,5.801e-05,2]
[420498162,1776165039735,-347.0,5.801e-05,2]
[420498163,1776165039747,-209.690792,5.872e-05,2]
[420498164,1776165039770,-799.63799818,5.886e-05,2]
[420498165,1776165039810,-799.63799818,5.886e-05,2]
[420498166,1776165039822,-799.63799818,5.886e-05,2]
[420498167,1776165039849,-799.63799818,5.886e-05,2]
[420498168,1776165039906,-799.63799818,5.886e-05,2]
[420498169,1776165039922,-799.63799818,5.886e-05,2]
[420498170,1776165039937,-799.63799818,5.886e-05,2]
[420498171,1776165039960,-799.63799818,5.886e-05,2]
[420498172,1776165039970,-799.63799818,5.886e-05,2]
[420498173,1776165040003,-799.63799818,5.886e-05,2]
[420498174,1776165040014,-799.63799818,5.886e-05,2]
[420498175,1776165040026,-799.63799818,5.886e-05,2]
[420498176,1776165040051,-799.63799818,5.886e-05,2]
[420498177,1776165040075,-799.63799818,5.886e-05,2]
[420498178,1776165040085,-799.63799818,5.886e-05,2]
[420498179,1776165040103,-799.63799818,5.886e-05,2]
[420498180,1776165040113,-799.63799818,5.886e-05,2]
[420498181,1776165040131,-799.63799818,5.886e-05,2]
[420498182,1776165040141,-1025098.30042907,5.888e-05,2]
[420498183,1776165040151,-1208.25229197,5.89e-05,2]
[420498184,1776165040160,-123213.72212898,5.89e-05,2]
[420498197,1776165040991,-5142.75770885,5.89e-05,2]
[420498198,1776165041003,-1549.6017491,5.89e-05,2]
[420498235,1776165043852,-5800.0,5.89e-05,2]
[420498237,1776165043875,-14559.34357715,5.89e-05,2]
[420498268,1776165046777,-500.0,5.886e-05,2]
[420498269,1776165046813,-885.84078417,5.886e-05,2]
[420498272,1776165046834,-500.0,5.886e-05,2]
[420498274,1776165046850,-885.84078417,5.886e-05,2]
[420498276,1776165046865,-500.0,5.886e-05,2]
[420498278,1776165046884,-885.84078417,5.886e-05,2]
[420498286,1776165047048,-500.0,5.886e-05,2]
[420498288,1776165047057,-500.0,5.886e-05,2]
[420498290,1776165047071,-299.15639381,5.886e-05,2]
[420498292,1776165047098,-500.0,5.886e-05,2]
[420498294,1776165047109,-500.0,5.886e-05,2]
[420498296,1776165047120,-500.0,5.886e-05,2]
[420498298,1776165047137,-885.84078417,5.886e-05,2]
[420498300,1776165047166,-500.0,5.886e-05,2]
[420498302,1776165047184,-500.0,5.886e-05,2]
[420498304,1776165047202,-500.0,5.886e-05,2]
[420498305,1776165047212,-885.84078417,5.886e-05,2]
[420498307,1776165047221,-885.84078417,5.886e-05,2]
[420498309,1776165047234,-500.0,5.886e-05,2]
[420498311,1776165047248,-500.0,5.886e-05,2]
[420498313,1776165047258,-500.0,5.886e-05,2]
[420498315,1776165047267,-500.0,5.886e-05,2]
[420498317,1776165047286,-500.0,5.886e-05,2]
[420498319,1776165047296,-85.92544065,5.886e-05,2]
[420498322,1776165047311,-414.07455935,5.886e-05,2]
[420498324,1776165047324,-500.0,5.886e-05,2]
[420498326,1776165047333,-500.0,5.886e-05,2]
[420498328,1776165047343,-430.80390155,5.89e-05,2]
[420498415,1776165385981,10000.0,0.00027397,120]
[420498417,1776165699915,183.72741097,0.00027397,120]
[420498418,1776165718228,13524.67915737,0.000273,120]
[420498419,1776166022665,-5000.0,5.162e-05,10]
[420498420,1776166022700,-2497.43263589,5.256e-05,2]
[420498421,1776166022727,-442.8992691,5.311e-05,2]
[420498422,1776166022757,-300.0,5.355e-05,2]
[420498423,1776166022800,-1759.66809501,5.356e-05,2]
[420498424,1776166045361,-5000.0,5.302e-05,10]
[420498425,1776166045408,-3708.76311064,5.356e-05,2]
[420498426,1776166045453,-325.2414606,5.39e-05,2]
[420498427,1776166045491,-173.8711502,5.41e-05,2]
[420498428,1776166045522,-196.4229743,5.428e-05,2]
[420498429,1776166045557,-196.4268325,5.428e-05,2]
[420498430,1776166045600,-399.27447176,5.456e-05,2]
[420498431,1776166076856,-5000.0,5.401e-05,10]
[420498432,1776166076892,-5000.0,5.456e-05,2]
[420498433,1776166088237,-5000.0,5.401e-05,10]
[420498434,1776166088270,-661.84970269,5.456e-05,2]
[420498435,1776166088305,-656.8489482,5.479e-05,2]
[420498436,1776166088344,-500.0,5.663e-05,2]
[420498437,1776166088388,-504.80492157,5.663e-05,2]
[420498438,1776166088430,-500.0,5.663e-05,2]
[420498439,1776166088475,-502.22319693,5.663e-05,2]
[420498440,1776166088518,-300.0,5.681e-05,2]
[420498441,1776166088559,-500.0,5.682e-05,2]
[420498442,1776166088599,-500.0,5.682e-05,2]
[420498443,1776166088626,-374.27323061,5.682e-05,2]
[420498444,1776166098408,-125.72676939,5.682e-05,2]
[420498445,1776166098440,-500.0,5.682e-05,2]
[420498446,1776166098473,-500.0,5.682e-05,2]
[420498447,1776166098506,-500.0,5.682e-05,2]
[420498448,1776166098533,-500.0,5.682e-05,2]
[420498449,1776166098559,-500.0,5.682e-05,2]
[420498450,1776166098591,-500.0,5.682e-05,2]
[420498451,1776166098626,-500.0,5.682e-05,2]
[420498452,1776166098662,-500.0,5.682e-05,2]
[420498453,1776166098712,-500.0,5.682e-05,2]
[420498454,1776166098752,-500.0,5.682e-05,2]
[420498455,1776166098783,-600.00000004,5.682e-05,2]
[420498456,1776166098816,-500.0,5.682e-05,2]
[420498457,1776166098848,-500.0,5.682e-05,2]
[420498458,1776166098882,-500.0,5.682e-05,2]
[420498459,1776166098912,-500.0,5.682e-05,2]
[420498460,1776166098947,-500.0,5.682e-05,2]
[420498461,1776166098987,-500.0,5.682e-05,2]
[420498462,1776166099020,-500.0,5.682e-05,2]
[420498463,1776166099059,-500.0,5.682e-05,2]
[420498464,1776166099083,-274.27323057,5.682e-05,2]
[420498465,1776166109747,-5000.0,5.625e-05,2]
[420498466,1776166109786,-225.72676943,5.682e-05,2]
[420498467,1776166109831,-500.0,5.682e-05,2]
[420498468,1776166109865,-571.51512647,5.682e-05,2]
[420498469,1776166109903,-500.0,5.682e-05,2]
[420498470,1776166109933,-500.0,5.682e-05,2]
[420498471,1776166109963,-500.0,5.682e-05,2]
[420498472,1776166110001,-500.0,5.682e-05,2]
[420498473,1776166110034,-500.0,5.682e-05,2]
[420498474,1776166110060,-500.0,5.682e-05,2]
[420498475,1776166110096,-500.0,5.682e-05,2]
[420498476,1776166110162,-202.7581041,5.682e-05,2]
[420498477,1776166121101,-243.92137063,5.682e-05,2]
[420498478,1776166121124,-500.0,5.682e-05,2]
[420498479,1776166121157,-500.0,5.682e-05,2]
[420498480,1776166121216,-500.0,5.682e-05,2]
[420498481,1776166121248,-500.0,5.682e-05,2]
[420498482,1776166121280,-500.0,5.682e-05,2]
[420498483,1776166121333,-500.0,5.682e-05,2]
[420498484,1776166121378,-500.0,5.682e-05,2]
[420498485,1776166121407,-500.0,5.682e-05,2]
[420498486,1776166121434,-500.0,5.682e-05,2]
[420498487,1776166121487,-500.0,5.682e-05,2]
[420498488,1776166121527,-500.0,5.682e-05,2]
[420498489,1776166121713,-500.0,5.682e-05,2]
[420498490,1776166121751,-665.92019892,5.682e-05,2]
[420498491,1776166121789,-665.92019892,5.682e-05,2]
[420498492,1776166121861,-665.92019892,5.682e-05,2]
[420498493,1776166121888,-665.92019892,5.682e-05,2]
[420498494,1776166121944,-665.92019892,5.682e-05,2]
[420498495,1776166121977,-426.47763477,5.682e-05,2]
[420498500,1776166232705,-209.690792,5.114e-05,2]
[420498501,1776166232723,-523.17961596,5.5e-05,2]
[420498502,1776166232732,-500.0,5.5e-05,2]
[420498503,1776166232742,-300.0,5.582e-05,2]
[420498504,1776166232751,-110228.36943446,5.583e-05,2]
[420498640,1776166239228,-49986.56031463,5.583e-05,2]
[420498641,1776166239241,-5675.334293,5.583e-05,2]
[420498649,1776166243160,-1458.15518541,5.583e-05,2]
[420498664,1776166244300,-11463.61490897,5.583e-05,2]
[420498665,1776166244580,-1967.39484448,5.583e-05,2]
[420498666,1776166244646,-1790.70963771,5.583e-05,2]
[420498682,1776166251014,-501.0,5.583e-05,2]
[420498683,1776166251049,-5770.93137839,5.583e-05,2]
[420498684,1776166251093,-3458.64472263,5.583e-05,2]
[420498685,1776166296143,-1233.10418541,5.526e-05,2]
[420498686,1776166296177,-300.0,5.582e-05,2]
[420498687,1776166296208,-524.66921895,5.582e-05,2]
[420498688,1776166296239,-500.0,5.582e-05,2]
[420498689,1776166296291,-500.0,5.582e-05,2]
[420498690,1776166296331,-500.0,5.582e-05,2]
[420498691,1776166296369,-500.0,5.582e-05,2]
[420498692,1776166296405,-500.0,5.582e-05,2]
[420498693,1776166296432,-500.0,5.582e-05,2]
[420498694,1776166296455,-500.0,5.582e-05,2]
[420498695,1776166296479,-500.0,5.582e-05,2]
[420498696,1776166296503,-500.0,5.582e-05,2]
[420498697,1776166296527,-500.0,5.582e-05,2]
[420498698,1776166296552,-500.0,5.582e-05,2]
[420498699,1776166296575,-500.0,5.582e-05,2]
[420498700,1776166296614,-500.0,5.582e-05,2]
[420498701,1776166296663,-500.0,5.582e-05,2]
[420498702,1776166296693,-500.0,5.582e-05,2]
[420498703,1776166296732,-442.22659564,5.582e-05,2]
[420498704,1776166298613,-57.77340436,5.582e-05,2]
[420498705,1776166298788,-500.0,5.582e-05,2]
[420498706,1776166298850,-500.0,5.582e-05,2]
[420498707,1776166298891,-500.0,5.582e-05,2]
[420498708,1776166298927,-500.0,5.582e-05,2]
[420498709,1776166298955,-500.0,5.582e-05,2]
[420498710,1776166298991,-479.91563938,5.582e-05,2]
[420498711,1776166299019,-500.0,5.582e-05,2]
[420498712,1776166299049,-474.39213707,5.582e-05,2]
[420498713,1776166299082,-500.0,5.582e-05,2]
[420498714,1776166299111,-500.0,5.582e-05,2]
[420498715,1776166299145,-500.0,5.582e-05,2]
[420498716,1776166299173,-500.0,5.582e-05,2]
[420498717,1776166299206,-500.0,5.582e-05,2]
[420498718,1776166299235,-500.0,5.582e-05,2]
[420498719,1776166299265,-362.6784909,5.582e-05,2]
[420498720,1776166299305,-500.0,5.582e-05,2]
[420498721,1776166299344,-500.0,5.582e-05,2]
[420498722,1776166299373,-500.0,5.582e-05,2]
[420498723,1776166299405,-500.0,5.582e-05,2]
[420498724,1776166299638,-500.0,5.582e-05,2]
[420498725,1776166299668,-125.24032829,5.582e-05,2]
[420498726,1776166300734,-374.75967171,5.582e-05,2]
[420498727,1776166300756,-500.0,5.582e-05,2]
[420498728,1776166300780,-500.0,5.582e-05,2]
[420498729,1776166300802,-500.0,5.582e-05,2]
[420498730,1776166300826,-500.0,5.582e-05,2]
[420498731,1776166300848,-500.0,5.582e-05,2]
[420498732,1776166300876,-500.0,5.582e-05,2]
[420498733,1776166300901,-500.0,5.582e-05,2]